Cogmind - Beta 11 @@@ ROGUE MODE // 2022.04.17 @ 00:58:56 Player: RNGesus Result: Destroyed by 8R-AWN with 8R-AWN's Boregun Performance ------------- Evolutions (0) 0 Regions Visited (3) 600 Robots Destroyed (28) 140 Value Destroyed (513) 513 Prototype IDs (25) 500 Alien Tech Used (0) 0 Bonus (45) 45 TOTAL SCORE: 1798 Bonus ------- Follower Combat Kills 60 Aligned with FarCom 300 Friendly Fire -315 Cogmind --------- Core Integrity 0/250 Matter 184/300 Energy 236/265 System Corruption 5% Temperature Cool (0) Movement Core (850) Ox16 Location -10/Exiles Parts ------- > --- POWER (1) -------- Improved Ion Engine > --- PROPULSION (2) --- Improved Aluminum Leg > --- UTILITY (2) ------ Improved Heat Sink High-capacity Storage Unit > --- WEAPON (2) ------- Mining Claw > --- INVENTORY (20) --- Large Matter Pod (150) Experimental Sensor Array Seismic Detector Transport Network Coupler Improved Targeting Computer Hacking Suite Bomb Drone Bay Medium Laser Small Laser Assault Rifle Light Assault Rifle Light Assault Rifle Rocket Launcher Peak State ------------ > --- POWER ------------ Improved Ion Engine > --- PROPULSION ------- Light Treads Improved Aluminum Leg > --- UTILITY ---------- Improved Heat Sink High-capacity Storage Unit > --- WEAPON ----------- Mining Claw Mining Claw > --- INVENTORY -------- Improved Ion Engine Improved Aluminum Leg Wheel Large Matter Pod Experimental Sensor Array Seismic Detector Transport Network Coupler Improved Targeting Computer Hacking Suite Bomb Drone Bay Medium Laser Small Laser Assault Rifle Light Assault Rifle Light Assault Rifle Rocket Launcher [Rating: 15] Favorites ----------- Power Improved Ion Engine Engine Improved Ion Engine Propulsion Light Treads Treads Light Treads Leg Improved Aluminum Leg Wheel Wheel Utility High-capacity Storage Unit Device Seismic Detector Storage High-capacity Storage Unit Protection Light Armor Plating Weapon Light Assault Rifle Energy Gun Medium Laser Ballistic Gun Light Assault Rifle Launcher Grenade Launcher Slashing Weapon Mining Claw Build | -11 -10 -10 -10 ------- Run | Scr Mat Min Exi Slots Evolved . | . . . . Power . | . . . . Propulsion . | . . . . Utility . | . . . . Weapon . | . . . . Parts Attached 33 | 6 12 4 11 Power 3 | 1 1 . 1 Engine 3 | 1 1 . 1 Core . | . . . . Reactor . | . . . . Propulsion 6 | 2 . . 4 Treads 3 | 2 . . 1 Leg 2 | . . . 2 Wheel 1 | . . . 1 Hover . | . . . . Flight . | . . . . Utility 5 | 1 3 . 1 Device 2 | . 1 . 1 Storage 2 | 1 1 . . Processor . | . . . . Hackware . | . . . . Protection 1 | . 1 . . Artifact . | . . . . Weapon 19 | 2 8 4 5 Energy Gun 4 | 1 3 . . Energy Cannon . | . . . . Ballistic Gun 6 | 1 1 2 2 Ballistic Cannon . | . . . . Launcher 6 | . 3 2 1 Special Weapon . | . . . . Impact Weapon . | . . . . Slashing Weapon 3 | . 1 . 2 Piercing Weapon . | . . . . Special Melee Weapon . | . . . . Unidentified Prototypes . | . . . . Parts Lost 9 | . 1 . 8 Power 1 | . . . 1 Propulsion 5 | . . . 5 Utility 1 | . . . 1 Weapon 2 | . 1 . 1 Highest Loss Streak 8 | . 1 . 8 To Critical Strikes 4 | . . . 4 Average Slot Usage (%) 94 | . 96 100 89 Engine 14 | . 14 14 14 Treads 27 | . 28 28 27 Device 1 | . 2 . . Storage 14 | . 14 14 14 Protection 12 | . 10 14 13 Energy Gun 6 | . 13 8 . Ballistic Gun 15 | . 11 19 16 Naked Turns . | . . . . Heaviest Build 54 | 13 52 54 53 Greatest Support 40 | 40 40 40 40 Greatest Overweight (x) 3 | 3 1 1 3 Average Overweight (x) . | . . 1 1 Largest Inventory Capacity 20 | 8 20 20 20 Average Capacity 19 | 7 19 20 20 Most Carried 20 | 4 18 20 20 Average Carried 16 | 2 11 19 19 Final Capacity 20 | 8 20 20 20 Final Carried 20 | 4 18 20 14 Class Distribution -------------------- 100% | Mutant Dominant Class ---------------- Mutant | -10/Materials Mutant | -10/Mines Mutant | -10/Exiles Resources | -11 -10 -10 -10 ----------- Run | Scr Mat Min Exi Matter Collected 663 | 212 228 69 154 Remotely . | . . . . Salvage Created 757 | 122 457 169 9 Parts 50 | 7 31 12 . Haulers Intercepted 2 | . 2 . . Recyclers Shooed 1 | . 1 . . Parts Field Recycled . | . . . . Retrieved Matter . | . . . . Parts Self-Destructed . | . . . . Prevented . | . . . . Kills | -11 -10 -10 -10 ------- Run | Scr Mat Min Exi Combat Hostiles Destroyed 20 | . 9 7 4 Guns 6 | . 4 2 . AOE 14 | . 5 5 4 Classes Destroyed 8 | 3 4 . 1 Worker 5 | 1 4 . . Tunneler 2 | 2 . . . Hauler 2 | . 2 . . Recycler 2 | 1 1 . . Operator 1 | . 1 . . Swarmer 6 | . 3 3 . Grunt 10 | . 6 4 . Assembled 5 | . . . 5 Best Kill Streak 4 | 4 4 3 4 Combat Bots Only 4 | . 3 3 4 Max Kills in Single Turn 2 | 1 2 2 1 Gunslinging . | . . . . Exploded 2 | . 2 2 1 Melee . | . . . . Uniques/NPCs Destroyed . | . . . . Combat | -11 -10 -10 -10 -------- Run | Scr Mat Min Exi Damage Taken 1471 | . 386 234 851 Core 261 | . 69 33 159 Absorbed by Shields . | . . . . Core Remaining (%) 100 | 100 . . . Volleys Fired 79 | 10 47 16 6 Largest 2 | 2 2 2 1 Hottest 70 | 70 70 70 33 Shots Fired 141 | 20 87 28 6 Gun 124 | 20 80 24 . Cannon . | . . . . Launcher 17 | . 7 4 6 Special . | . . . . Kinetic 64 | 10 40 14 . Thermal 60 | 10 40 10 . Explosive 17 | . 7 4 6 Electromagnetic . | . . . . Robot Hit Streak 8 | 8 6 6 1 Robot Miss Streak 4 | 3 4 2 3 Penetration Max . | . . . . Secondary Targets . | . . . . Shots Hit Robots 97 | 13 51 20 13 Core Hits 70 | 7 33 12 18 Critical Kills . | . . . . Critical Parts Destroyed . | . . . . Critical Strikes 3 | . 2 1 . Burn 3 | . 2 1 . Melee Attacks 16 | . 2 . 14 Impact . | . . . . Slashing 16 | . 2 . 14 Piercing . | . . . . Sneak Attacks . | . . . . Combat Hostiles . | . . . . Follow-up Attacks 1 | . . . 1 Damage Inflicted 2467 | 136 928 567 836 Guns 825 | 136 469 220 . Cannons . | . . . . Explosions 1379 | . 456 347 576 Melee 260 | . . . 260 Ramming 3 | . 3 . . Kinetic 371 | 59 194 118 . Thermal 454 | 77 275 102 . Explosive 1379 | . 456 347 576 Electromagnetic . | . . . . Impact . | . . . . Slashing 260 | . . . 260 Piercing . | . . . . Highest Corruption 5 | . 1 1 5 Average Corruption 1 | . 1 1 1 Corruption Purged . | . . . . Corruption Blocked . | . . . . Effects 16 | . . 5 11 Message Errors 5 | . . 2 3 Matter Fused 3 | . . 2 1 Heat Flow Errors 2 | . . 1 1 Energy Discharges 2 | . . . 2 Data Loss (minor) 2 | . . . 2 Alerts 2 | . . . 2 Overload Shots . | . . . . Overflow Damage 8 | . 4 4 . Projectiles . | . . . . Explosions 8 | . 4 4 . Melee . | . . . . Knockbacks . | . . . . Impact . | . . . . Kinetic . | . . . . Secondary . | . . . . Self-Inflicted Damage 37 | . 15 22 . Shots 2 | . 1 1 . Rammed . | . . . . Targets Rammed 1 | . 1 . . Kicked . | . . . . Crushed 1 | . 1 . . Highest Temperature 240 | 60 220 240 142 Average Temperature 64 | 28 62 89 73 Received Heat Transfer 210 | . 105 105 . Siege Activations . | . . . . Robots Corrupted . | . . . . Combat Hostiles . | . . . . Parts Fried . | . . . . Impact Corruptions . | . . . . Robots Melted . | . . . . Combat Hostiles . | . . . . Parts Melted 2 | . 1 1 . Heat Transferred 1554 | 222 962 370 . Parts Sabotaged . | . . . . Parts Stolen . | . . . . Parts Stripped . | . . . . Power Chain Reactions . | . . . . Missiles Intercepted . | . . . . Alert | -11 -10 -10 -10 ------- Run | Scr Mat Min Exi Peak Influence 206 | 20 206 157 . Initial 13 | . 13 1 . Average 80 | 3 101 66 . Maximum Alert Level 1 | . 1 . . Low Security (%) 97 | 100 95 100 . Level 1 2 | . 4 . . Level 2 . | . . . . Level 3 . | . . . . Level 4 . | . . . . Level 5 . | . . . . High Security . | . . . . Max Security . | . . . . Squads Dispatched 2 | . 2 . . Investigation . | . . . . Extermination . | . . . . Reinforcement 2 | . 2 . . Assault . | . . . . Garrison . | . . . . Intercept . | . . . . Searches Triggered . | . . . . Construction Impeded . | . . . . Haulers Reinforced . | . . . . Active Scanning Responses . | . . . . Cargo Convoy Interrupts . | . . . . Stealth | -11 -10 -10 -10 --------- Run | Scr Mat Min Exi Distress Signals 2 | . 2 . . Communications Jammed . | . . . . Distress Signals . | . . . . Times Spotted 41 | . 25 9 7 Peak Tracking Total 8 | . 5 3 8 Tactical Retreats . | . . . . Traps | -11 -10 -10 -10 ------- Run | Scr Mat Min Exi Traps Triggered 2 | . 2 . . Indirectly . | . . . . Trap Hack Attempts . | . . . . Triggered . | . . . . Disarmed . | . . . . Reprogrammed . | . . . . Reused . | . . . . Traps Extracted . | . . . . Installed . | . . . . Triggered . | . . . . Machines | -11 -10 -10 -10 ---------- Run | Scr Mat Min Exi Machines Disabled 5 | . 2 . 3 Max in Single Turn 2 | . 1 . 2 Machines Sabotaged . | . . . . Garrisons Compromised . | . . . . Overloaded Fab Kills . | . . . . Hacking | -11 -10 -10 -10 --------- Run | Scr Mat Min Exi Machines Accessed 5 | . 2 1 2 Terminals 2 | . 2 . . Fabricators . | . . . . Repair Stations . | . . . . Recycling Units . | . . . . Scanalyzers . | . . . . Garrison Access . | . . . . Total Hacks 15 | . 8 1 6 Successful 10 | . 3 1 6 Failed 4 | . 4 . . Catastrophic 1 | . 1 . . Database Lockouts 1 | . 1 . . Manual 5 | . 4 . 1 Terminals 8 | . 8 . . Fabricators . | . . . . Repair Stations . | . . . . Recycling Units . | . . . . Scanalyzers . | . . . . Garrison Access . | . . . . Terminal Hacks 10 | . 3 1 6 Record 5 | . . . 5 Robot Analysis 1 | . 1 . . Prototype ID Bank 1 | . 1 . . Open Door 1 | . . 1 . Branch Access Points 1 | . 1 . . EX-Prototype ID Bank 1 | . . . 1 Fabricator Hacks . | . . . . Repair Station Hacks . | . . . . Recycling Unit Hacks . | . . . . Scanalyzer . | . . . . Garrison Access Hacks . | . . . . Unauthorized Hacks . | . . . . Terminals . | . . . . Fabricators . | . . . . Repair Stations . | . . . . Recycling Units . | . . . . Scanalyzers . | . . . . Garrison Access . | . . . . Data Cores Recovered . | . . . . Used . | . . . . Hacking Detections 2 | . 2 . . Full Trace Events 1 | . 1 . . Feedback Events . | . . . . Feedback Blocked . | . . . . Robot Schematics Acquired . | . . . . Robots Built . | . . . . Authchips . | . . . . Time . | . . . . Total Robot Build Rating . | . . . . Part Schematics Acquired . | . . . . Parts Built . | . . . . Authchips . | . . . . Time . | . . . . Total Part Build Rating . | . . . . Parts Repaired . | . . . . Time . | . . . . Parts Recycled . | . . . . Recycled Matter . | . . . . Retrieved Matter . | . . . . Retrieved Components . | . . . . Parts Scanalyzed . | . . . . Part Schematics Acquired . | . . . . Parts Damaged . | . . . . Bothacking | -11 -10 -10 -10 ------------ Run | Scr Mat Min Exi Used RIF Installer . | . . . . Robots Hacked . | . . . . Non-combat . | . . . . Combat . | . . . . Robot Hacks Applied . | . . . . Relay Couplers Released . | . . . . Fabnet Peak Effective % . | . . . . Robots Rewired . | . . . . Allies Hacked . | . . . . Hacks Repelled . | . . . . Allies | -11 -10 -10 -10 -------- Run | Scr Mat Min Exi Total Allies 1 | . . 1 . Largest Group 1 | . . 1 . Highest-Rated Group 31 | . . 31 . Highest-Rated Ally 31 | . . 31 . Total Orders . | . . . . Ally Attacks 7 | . . 7 . Total Damage 143 | . . 143 . Kills 2 | . . 2 . Allies Corrupted . | . . . . Allies Melted . | . . . . Intel | -11 -10 -10 -10 ------- Run | Scr Mat Min Exi Robot Analysis Total 1 | . 1 . . Derelict Logs Recovered 1 | . . 1 . Drone Launches . | . . . . Drone Recoveries . | . . . . Exploration | -11 -10 -10 -10 ------------- Run | Scr Mat Min Exi Turns Passed 4003 | 121 1228 1165 1489 Spaces Moved 1551 | 53 448 463 587 Core 10 | 10 . . . Treads 1539 | 43 448 463 585 Legs 2 | . . . 2 Wheels . | . . . . Hover . | . . . . Flight . | . . . . Fastest Speed 50 | 50 160 240 240 Average Speed 235 | 152 234 240 240 Slowest Speed 330 | 200 240 240 330 Overloaded Moves . | . . . . Propulsion Burnouts . | . . . . Robots Hopped . | . . . . Cave-ins Triggered . | . . . . Exploration Rate (%) 65 | 5 98 91 69 Regions Visited 3 Branch Regions 2 Pre-discovered Areas 1 | . . . 1 Known Exits Taken 1 | . 1 . . Unknown Exits Taken 2 | 1 . 1 . Scrap Searched 1 | . . 1 . Spaces Dug 7 | . 7 . . Terrain Destroyed 90 | . 16 34 40 Melee 1 | . 1 . . Projectile . | . . . . AOE 89 | . 15 34 40 Terrain Rammed . | . . . . Walls Destroyed . | . . . . Machines Disabled . | . . . . Actions | -11 -10 -10 -10 --------- Run | Scr Mat Min Exi Total 1740 | 72 540 493 635 Wait 11 | . 10 1 . Move 1548 | 52 447 462 587 Hop . | . . . . Pick Up 34 | 4 16 6 8 Fast Attach 9 | 6 1 . 2 Attach 8 | . 1 1 6 Detach 1 | . 1 . . Swap 16 | . 10 3 3 Drop 18 | . 4 4 10 Fire 79 | 10 47 16 6 Melee 15 | . 2 . 13 Ram . | . . . . Kick . | . . . . Crush 1 | . 1 . . Escape Stasis . | . . . . Rewire . | . . . . Trap . | . . . . Miscellaneous . | . . . . Route ------- -11/Scrapyard -10/Materials (discovered 5 exits: [*Mat x3] / *Min x2) -10/Mines (discovered 2 exits: [*Mat] / *Exi) -10/Exiles (discovered 1 exit: [*Min]) History --------- Turn | Location | Event 15 | -11/Scrapyard | Discovered new exit (range 15) 122 | -11/Scrapyard | Entered Materials 247 | -10/Materials | Identified exit to Mines 316 | -10/Materials | Build established: Mutant 364 | -10/Materials | Central database locked down 485 | -10/Materials | Discovered new exit (range 12) 890 | -10/Materials | Discovered new exit (range 13) 1145 | -10/Materials | Discovered new exit (range 15) 1350 | -10/Materials | Entered Mines 1407 | -10/Mines | Discovered new exit (range 5) 1672 | -10/Mines | Found a damaged Exp. Sensor Array with a note attached 1677 | -10/Mines | Found Prototype Device 1726 | -10/Mines | Learned Materials stockpile data 1733 | -10/Mines | Deemed a non-threat by the Exiles lab entrance 1733 | -10/Mines | Discovered new exit (range 5) 1966 | -10/Mines | Found the Drone Emporium 1978 | -10/Mines | Found Prototype Device 2048 | -10/Mines | Received a Rocket Launcher from a helpful Derelict 2174 | -10/Mines | Received a Mining Laser from a helpful Derelict 2515 | -10/Mines | Entered Exiles 2573 | -10/Exiles | Met 8R-AWN 2616 | -10/Exiles | Met EX-HEX 2688 | -10/Exiles | Met EX-BIN 2719 | -10/Exiles | Met EX-DEC 2729 | -10/Exiles | Learned location of Zion (-7) 3161 | -10/Exiles | Discovered new exit (range 15) 3327 | -10/Exiles | Aligned with FarCom system 3329 | -10/Exiles | Given EX-Vault access code 3385 | -10/Exiles | Opened EX-Vault 3452 | -10/Exiles | Warned to stay clear of 0b10 Research branches 3939 | -10/Exiles | Attacked by the Exiles 3947 | -10/Exiles | Core integrity fell below 50% 3976 | -10/Exiles | Core integrity fell below 20% 4004 | -10/Exiles | Destroyed by 8R-AWN with 8R-AWN's Boregun Last Messages --------------- 03980_ Critical hit (Destroy). 03980_ Imp. Aluminum Leg destroyed. 03982_ Penetrated by HV Slug. 03984_ Critical hit (Destroy). 03984_ Imp. Ion Engine destroyed. 03985_ System corrupted: IFF burst signal emitted. 03985_ The unstable cave ceiling collapses. 03986_ Penetrated by HV Slug. 03989_ The unstable cave ceiling collapses. 03989_ Penetrated by HV Slug. 03990_ The unstable cave ceiling collapses. 03991_ Penetrated by HV Slug. 03991_ Wheel destroyed. 03993_ Penetrated by HV Slug. 03995_ HV Slug penetrates Wall. 03995_ Penetrated by HV Slug. 03996_ The unstable cave ceiling collapses. 04000_ Penetrated by HV Slug. 04003_ The unstable cave ceiling collapses. 04004_ Penetrated by HV Slug. Map ----- +----------------------------------------------------+ | """#?????????????????????????????????????? | | """#?????????????????????????????????????? | | """"?????????????????????????????????????? | | """#?????????????????????????????????????? | | "X" """??????????????????????????????????????? | | """ ??????????????????????????????????????? | | """""""""??????????????????????????????????????? | | ##########??????????????????????????????????????? | | #???????????????????????????????????????????????? | | #???????????????????????????????????????????????? | | ##??????????????????????????????????????????????? | | ##???###########???????????????????????????????? | | #####"""" """"##??????????????????????????????? | | " """ """"##?????????????????????????????? | | "" " #?????????????????????????????? | | " """#?????????????????????????????? | | a"#???????????#####?????????????? | | " "##?????????##" #?????????????? | | "###???????#" #?????????????# | | ""#??????##" ##????????????# | | " "#????### ###????????### | | ##""" ##???# ########## | | ?##""" ##?## #""""## | | ??#"""" ### | | ?##"" % ## | | ##"""" @ #### | | "" g ""#?#"""""#### | | #"""##?#######??#### | | * ######??????????????##### | | ##???????????????????????# | | #????????????????????????? | | "" " ##????????????????????????? | | #""" " " "" % ?????????????????????????? | | #####""" """ # #?????????????????????????? | | ????###""""# # # ??????????????????????????? | | ###???######? # # ??????????????????????????? | | "!#??????????? # # ##??????????????????????????? | | !#?????????????# ##????????????????????????????? | | "#??????????????????????????????????????????????? | | !"#??????????????????????????????????????????????? | | ###??????????????????????????????????????????????? | | ?????????????????????????????????????????????????? | | ?????????????????????????????????????????????????? | | ?????????????????????????????????????????????????? | | ?????????????????????????????????????????????????? | | ?????????????????????????????????????????????????? | | ?????????????????????????????????????????????????? | | ?????????????????????????????????????????????????? | | ?????????????????????????????????????????????????? | | ?????????????????????????????????????????????????? | +----------------------------------------------------+ Best States ------------- Heat Dissipation 39 Energy Generation 12 Energy Capacity 265 Matter Stores 300 Matter Capacity 300 Sight Range 16 Terrain Scan Density 10 Armor Coverage 150 Evasion (%) 40 Recoil Reduction 2 Item Schematics ----------------- None Robot Schematics ------------------ None Fabricated ------------ Nothing Alien Tech Used ----------------- None Achievements -------------- None Challenges ------------ None Game ------ Seed DispersionProtonKatana Manual? 0 Play Time 00:14:57 Cumulative 338.2 hours Start 2022.04.17 @ 00:47:26 End 2022.04.17 @ 00:58:56 Sessions 1 Manual Loads 0 Difficulty Rogue Special Mode None Game No. 496 Rogue 496 Adventurer 0 Explorer 0 Win Type - Total 6 Types 4/0/1/1/0/0/0/0/0 Lore% 81 Gallery% 84 Achievement% 66 Wizard Run 0 Options --------- ASCII 0 Keyboard 1 Movement Numpad Keybinds 0 Fullscreen 2 Font 24/Smallcaps Map View 76x50 Tactical HUD 1 Map Filters NONE Filters NONE Steam 1 RUN: 121e462f-eac5-4b2c-a5ac-794edc09fa55